Cogmind - Beta 13 @@@ ROGUE MODE // 2024.03.05 @ 21:41:08 Player: Mogwok Wargfriend Result: Destroyed by C-17 Slicer with Concussive RPG Performance ------------- Evolutions (2) 1000 Regions Visited (3) 600 Robots Destroyed (44) 220 Value Destroyed (1038) 1038 Prototype IDs (4) 80 Alien Tech Used (0) 0 Bonus (0) 0 TOTAL SCORE: 2938 Bonus ------- None Cogmind --------- Core Integrity 0/550 Matter 266/300 Energy 60/100 System Corruption 4% Temperature Cool (0) Movement Core (50) Location -8/Materials Parts ------- > --- POWER (1) -------- (None) > --- PROPULSION (3) --- (None) > --- UTILITY (5) ------ (None) > --- WEAPON (2) ------- (None) > --- INVENTORY (5) ---- Aluminum Leg Wheel Wheel Advanced Heat Sink Small Storage Unit Peak State ------------ > --- POWER ------------ Nuclear Core > --- PROPULSION ------- Light Treads Wheel Compact Wheel > --- UTILITY ---------- Small Storage Unit Improved Sensor Array Advanced ECM Suite Light Armor Plating Hacking Suite > --- WEAPON ----------- Heavy EM Pulse Gun Improved Assault Rifle > --- INVENTORY -------- Cooled Ion Engine Aluminum Leg Propulsion Shielding Heavy EM Pulse Gun Heavy EM Pulse Gun Improved Assault Rifle [Rating: 24] Favorites ----------- Power Light Ion Engine Engine Light Ion Engine Power Core Nuclear Core Propulsion Wheel Treads Light Treads Leg Aluminum Leg Wheel Wheel Hover Unit Hover Unit Utility Small Storage Unit Device Improved Heat Sink Storage Small Storage Unit Hackware Hacking Suite Protection Light Armor Plating Weapon Improved Assault Rifle Energy Gun Heavy EM Pulse Gun Ballistic Gun Improved Assault Rifle Ballistic Cannon Flak Cannon Special Melee Weapon Datajack Build | -11 -10 -9 -8 ------- Run | Yrd Mat Mat Mat Slots Evolved 4 | . . 2 2 Power . | . . . . Propulsion 1 | . . 1 . Utility 3 | . . 1 2 Weapon . | . . . . Parts Attached 65 | 7 8 27 23 Power 8 | 1 . 3 4 Engine 6 | 1 . 3 2 Core 2 | . . . 2 Reactor . | . . . . Propulsion 25 | 2 2 14 7 Treads 4 | . . 4 . Leg 8 | . . 2 6 Wheel 10 | 2 . 7 1 Hover 3 | . 2 1 . Flight . | . . . . Utility 13 | 1 3 2 7 Device 7 | . 2 2 3 Storage 1 | 1 . . . Processor . | . . . . Hackware 1 | . 1 . . Protection 4 | . . . 4 Artifact . | . . . . Weapon 19 | 3 3 8 5 Energy Gun 10 | 1 2 3 4 Energy Cannon . | . . . . Ballistic Gun 6 | 2 1 2 1 Ballistic Cannon 2 | . . 2 . Launcher . | . . . . Special Weapon . | . . . . Impact Weapon . | . . . . Slashing Weapon . | . . . . Piercing Weapon . | . . . . Special Melee Weapon 1 | . . 1 . Unidentified Prototypes 4 | . . 3 1 Corrupted Parts 3 | . . 1 2 System Corruption 5 | . . 1 4 Parts Lost 33 | . 1 13 19 Power 4 | . . 2 2 Propulsion 13 | . . 7 6 Utility 6 | . . 1 5 Weapon 10 | . 1 3 6 Highest Loss Streak 8 | . 1 8 6 To Critical Strikes . | . . . . Average Slot Usage (%) 90 | . 96 91 84 Engine 9 | . 14 10 2 Core 1 | . . . 5 Treads 5 | . . 7 6 Leg 4 | . . 2 11 Wheel 9 | . 10 11 6 Hover 6 | . 16 4 . Device 9 | . 2 10 13 Storage 11 | . 14 11 8 Hackware 9 | . 8 11 7 Protection 1 | . . . 5 Energy Gun 9 | . 11 8 8 Ballistic Gun 9 | . 16 5 7 Ballistic Cannon 2 | . . 6 . Naked Turns 12 | . . . 12 Heaviest Build 26 | 12 13 26 25 Greatest Support 35 | 20 20 26 35 Greatest Overweight (x) 3 | 1 3 3 2 Average Overweight (x) . | . . . . Largest Inventory Capacity 8 | 8 8 8 8 Average Capacity 7 | 6 8 8 7 Most Carried 8 | 6 8 8 8 Average Carried 6 | 3 7 6 5 Final Capacity 8 | 8 8 8 5 Final Carried 8 | 6 8 8 5 Class Distribution -------------------- 50% | Scavenger-Mutant 49% | Mutant Dominant Class ---------------- Mutant | -10/Materials Scavenger-Mutant | -9/Materials Scavenger-Mutant | -8/Materials Resources | -11 -10 -9 -8 ----------- Run | Yrd Mat Mat Mat Matter Collected 1244 | 224 178 527 315 Remotely . | . . . . Salvage Created 1548 | . 353 564 631 Parts 84 | . 11 34 39 Haulers Intercepted 3 | . 1 2 . Recyclers Shooed 3 | . . 1 2 Parts Field Recycled . | . . . . Retrieved Matter . | . . . . Parts Self-Destructed . | . . . . Prevented . | . . . . Kills | -11 -10 -9 -8 ------- Run | Yrd Mat Mat Mat Combat Hostiles Destroyed 26 | . 5 10 11 Guns 15 | . 3 2 10 Cannons 8 | . . 8 . AOE 3 | . 2 . 1 Classes Destroyed 12 | . 4 6 2 Worker 6 | . . 2 4 Builder 1 | . . . 1 Tunneler 1 | . . 1 . Hauler 3 | . 1 2 . Recycler 4 | . 1 2 1 Mechanic 1 | . . 1 . Operator 1 | . 1 . . Watcher 1 | . . 1 . Swarmer 7 | . . 4 3 Grunt 15 | . 5 3 7 Duelist 1 | . . . 1 Sentry 3 | . . 3 . Best Kill Streak 7 | . 3 4 7 Combat Bots Only 4 | . 2 4 3 Max Kills in Single Turn 3 | . 3 1 3 Gunslinging 1 | . . . 1 Exploded 2 | . 2 . 1 Melee . | . . . . Uniques/NPCs Destroyed . | . . . . Combat | -11 -10 -9 -8 -------- Run | Yrd Mat Mat Mat Hostile Shots Fired 367 | . 29 145 193 Missed 103 | . 9 37 57 Damage Taken 3819 | . 317 1291 2211 Core 919 | . 58 310 551 Absorbed by Shields . | . . . . Redirected to Shielding 53 | . . . 53 Regen/Repaired (Parts) 28 | . . 28 . Core Remaining (%) 66 | 100 76 22 . Volleys Fired 143 | . 20 59 64 Largest 2 | . 2 2 2 Hottest 100 | . 60 100 88 Shots Fired 251 | . 39 103 109 Gun 204 | . 39 56 109 Cannon 47 | . . 47 . Launcher . | . . . . Special . | . . . . Kinetic 149 | . 27 68 54 Thermal 41 | . . 24 17 Explosive . | . . . . Electromagnetic 61 | . 12 11 38 Robot Hit Streak 11 | . 8 11 9 Robot Miss Streak 14 | . 4 14 5 Penetration Max . | . . . . Secondary Targets 5 | . 1 . 4 Max Gunslinging Chain 1 | . 1 . 1 Shots Hit Robots 169 | . 23 78 68 Core Hits 96 | . 11 51 34 Critical Kills . | . . . . Critical Parts Destroyed 3 | . . 1 2 Critical Strikes 4 | . . 2 2 Burn 1 | . . 1 . Destroy 3 | . . 1 2 Melee Attacks 10 | . . 10 . Impact . | . . . . Slashing . | . . . . Piercing . | . . . . Sneak Attacks . | . . . . Combat Hostiles . | . . . . Follow-up Attacks . | . . . . Damage Inflicted 3189 | . 599 1129 1461 Guns 1983 | . 301 514 1168 Cannons 592 | . . 592 . Explosions 590 | . 298 . 292 Melee . | . . . . Ramming 24 | . . 23 1 Kinetic 1554 | . 194 785 575 Thermal 706 | . . 203 503 Explosive 298 | . 298 . . Electromagnetic 607 | . 107 118 382 Impact . | . . . . Slashing . | . . . . Piercing . | . . . . Highest Corruption 9 | . . 9 4 Average Corruption 4 | . . 6 3 Corruption Purged . | . . . . Corruption Blocked . | . . . . Effects 19 | . . 12 7 Message Errors 4 | . . 3 1 Matter Fused 5 | . . 3 2 Heat Flow Errors 1 | . . . 1 Energy Discharges 1 | . . 1 . Data Loss (minor) 2 | . . 2 . Data Loss (major) 1 | . . . 1 Misfires 1 | . . . 1 Alerts 1 | . . 1 . Weapon Failures 3 | . . 2 1 Overload Shots . | . . . . Overflow Damage 77 | . 69 . 8 Projectiles . | . . . . Explosions 77 | . 69 . 8 Melee . | . . . . Knockbacks 8 | . . 8 . Impact . | . . . . Kinetic 8 | . . 8 . Secondary . | . . . . Self-Inflicted Damage 90 | . 84 6 . Shots 1 | . 1 . . Rammed 9 | . . 8 1 Targets Rammed 12 | . . 10 2 Kicked 3 | . . 2 1 Crushed . | . . . . Highest Temperature 335 | . 24 335 187 Average Temperature 59 | . 12 119 31 Received Heat Transfer 1572 | . 132 549 891 Effects 1 | . . 1 . Interference 1 | . . 1 . Siege Activations . | . . . . Robots Corrupted . | . . . . Combat Hostiles . | . . . . Parts Fried 1 | . . 1 . Impact Corruptions . | . . . . Robots Melted . | . . . . Combat Hostiles . | . . . . Parts Melted 4 | . . 3 1 Heat Transferred 1360 | . . 629 731 Parts Sabotaged . | . . . . Parts Stolen . | . . . . Parts Stripped . | . . . . Power Chain Reactions 2 | . . . 2 Alert | -11 -10 -9 -8 ------- Run | Yrd Mat Mat Mat Peak Influence 243 | . 243 185 205 Initial 23 | . . 23 11 Average 86 | . 91 90 84 Maximum Alert Level 1 | . 1 . 1 Low Security (%) 87 | 100 76 100 80 Level 1 12 | . 23 . 19 Level 2 . | . . . . Level 3 . | . . . . Level 4 . | . . . . Level 5 . | . . . . High Security . | . . . . Max Security . | . . . . Squads Dispatched 8 | . 2 3 3 Investigation 2 | . 1 1 . Extermination . | . . . . Reinforcement 6 | . 1 2 3 Assault . | . . . . Garrison . | . . . . Intercept . | . . . . Searches Triggered . | . . . . Construction Impeded . | . . . . Haulers Reinforced . | . . . . Active Scanning Responses . | . . . . Cargo Convoy Interrupts . | . . . . Stealth | -11 -10 -9 -8 --------- Run | Yrd Mat Mat Mat Distress Signals 6 | . . 2 4 Communications Jammed . | . . . . Distress Signals . | . . . . Times Spotted 61 | . 7 20 34 Peak Tracking Total 9 | . 2 5 9 Tactical Retreats 8 | . . 4 4 Traps | -11 -10 -9 -8 ------- Run | Yrd Mat Mat Mat Traps Triggered 1 | . 1 . . Indirectly . | . . . . Trap Hack Attempts . | . . . . Triggered . | . . . . Disarmed . | . . . . Reprogrammed . | . . . . Reused . | . . . . Traps Extracted . | . . . . Installed . | . . . . Triggered . | . . . . Machines | -11 -10 -9 -8 ---------- Run | Yrd Mat Mat Mat Machines Disabled 5 | . 2 . 3 Max in Single Turn 2 | . 2 . 1 Machines Repaired . | . . . . Machines Dismantled . | . . . . Machines Sabotaged . | . . . . Overloaded Fab Kills . | . . . . Hacking | -11 -10 -9 -8 --------- Run | Yrd Mat Mat Mat Machines Accessed 8 | . 3 3 2 Terminals 7 | . 3 2 2 Fabricators . | . . . . Repair Stations 1 | . . 1 . Recycling Units . | . . . . Scanalyzers . | . . . . Garrison Access . | . . . . Total Hacks 21 | . 6 10 5 Successful 10 | . 4 4 2 Failed 11 | . 2 6 3 Catastrophic . | . . . . Database Lockouts . | . . . . Manual 4 | . 3 . 1 Terminals 17 | . 6 6 5 Fabricators . | . . . . Repair Stations 4 | . . 4 . Recycling Units . | . . . . Scanalyzers . | . . . . Garrison Access . | . . . . Terminal Hacks 7 | . 4 1 2 Record 1 | . 1 . . Part Schematic 2 | . 1 . 1 Robot Analysis 1 | . 1 . . Scanalyzer Index 1 | . . 1 . Alert Level 1 | . 1 . . Locate Traps 1 | . . . 1 Fabricator Hacks . | . . . . Repair Station Hacks 3 | . . 3 . Scan Component 2 | . . 2 . Repair 1 | . . 1 . Recycling Unit Hacks . | . . . . Scanalyzer . | . . . . Garrison Access Hacks . | . . . . Unauthorized Hacks . | . . . . Terminals . | . . . . Fabricators . | . . . . Repair Stations . | . . . . Recycling Units . | . . . . Scanalyzers . | . . . . Garrison Access . | . . . . Data Cores Recovered 1 | . 1 . . Used . | . . . . Hacking Detections 8 | . 3 3 2 Full Trace Events 2 | . . 1 1 Feedback Events . | . . . . Feedback Blocked . | . . . . Robot Schematics Acquired . | . . . . Robots Built . | . . . . Authchips . | . . . . Time . | . . . . Total Robot Build Rating . | . . . . Part Schematics Acquired 2 | . 1 . 1 Parts Built . | . . . . Authchips . | . . . . Time . | . . . . Total Part Build Rating . | . . . . Parts Repaired 1 | . . 1 . Time 26 | . . 26 . Parts Recycled . | . . . . Recycled Matter . | . . . . Retrieved Matter . | . . . . Retrieved Components . | . . . . Parts Scanalyzed . | . . . . Part Schematics Acquired . | . . . . Parts Damaged . | . . . . Bothacking | -11 -10 -9 -8 ------------ Run | Yrd Mat Mat Mat Used RIF Installer . | . . . . Robots Hacked 1 | . . 1 . Non-combat . | . . . . Combat 1 | . . 1 . Robot Hacks Applied 1 | . . 1 . parse_system 1 | . . 1 . Relay Couplers Released . | . . . . Fabnet Peak Effective % . | . . . . Robots Rewired . | . . . . Allies Hacked . | . . . . Hacks Repelled . | . . . . Allies | -11 -10 -9 -8 -------- Run | Yrd Mat Mat Mat Total Allies . | . . . . Largest Group . | . . . . Highest-Rated Group . | . . . . Highest-Rated Ally . | . . . . Total Orders . | . . . . Ally Attacks . | . . . . Total Damage . | . . . . Kills . | . . . . Allies Corrupted . | . . . . Allies Melted . | . . . . Intel | -11 -10 -9 -8 ------- Run | Yrd Mat Mat Mat Robot Analysis Total 1 | . 1 . . Derelict Logs Recovered . | . . . . Drone Launches . | . . . . Drone Recoveries . | . . . . Exploration | -11 -10 -9 -8 ------------- Run | Yrd Mat Mat Mat Turns Passed 2149 | 65 566 824 694 Spaces Moved 1384 | 59 496 500 329 Core 39 | 13 2 2 22 Treads 4 | . . 4 . Legs 160 | . . 26 134 Wheels 769 | 46 201 349 173 Hover 412 | . 293 119 . Flight . | . . . . Fastest Speed 50 | 50 56 56 50 Average Speed 94 | 81 66 108 118 Slowest Speed 260 | 100 200 260 260 Overloaded Moves . | . . . . Propulsion Burnouts . | . . . . Robots Hopped . | . . . . Cave-ins Triggered . | . . . . Exploration Rate (%) 30 | 3 65 32 23 Regions Visited 3 Branch Regions . Pre-discovered Areas . | . . . . Known Exits Taken . | . . . . Unknown Exits Taken 3 | 1 1 1 . Scrap Searched . | . . . . Spaces Dug . | . . . . Terrain Destroyed 46 | . 34 . 12 Melee . | . . . . Projectile . | . . . . AOE 46 | . 34 . 12 Terrain Rammed . | . . . . Walls Destroyed . | . . . . Machines Disabled . | . . . . Actions | -11 -10 -9 -8 --------- Run | Yrd Mat Mat Mat Total 1961 | 73 694 674 520 Wait 292 | . 158 42 92 Move 1381 | 58 495 499 329 Hop . | . . . . Pick Up 27 | 8 4 10 5 Fast Attach 37 | 4 6 16 11 Attach 26 | 2 1 11 12 Detach 13 | . 2 7 4 Swap 2 | 1 1 . . Drop 18 | . 7 10 1 Fire 143 | . 20 59 64 Melee 10 | . . 10 . Ram 9 | . . 8 1 Kick 3 | . . 2 1 Crush . | . . . . Escape Stasis . | . . . . Rewire . | . . . . Trap . | . . . . Miscellaneous . | . . . . Route ------- -11/Scrapyard -10/Materials (discovered 2 exits: *Mat / [*Min]) -9/Materials (discovered 2 exits: *Mat / [*Min]) -8/Materials History --------- Turn | Location | Event 26 | -11/Scrapyard | Discovered new exit (range 15) 66 | -11/Scrapyard | Entered Materials 328 | -10/Materials | Build established: Mutant 436 | -10/Materials | Discovered new exit (range 16) 625 | -10/Materials | Discovered new exit (range 8) 632 | -10/Materials | Entered another Materials area 632 | -9/Materials | Evolved 2 slots: Propulsion x1, Utility x1 728 | -9/Materials | Repaired Hover Unit 866 | -9/Materials | Core integrity fell below 50% 887 | -9/Materials | Lost 8 parts (1p4n1u2w) 1254 | -9/Materials | Build established: Scavenger-Mutant 1258 | -9/Materials | Discovered new exit (range 10) 1364 | -9/Materials | Discovered new exit (range 16) 1456 | -9/Materials | Entered another Materials area 1456 | -8/Materials | Evolved 2 slots: Utility x2 1979 | -8/Materials | Lost 6 parts (1p2n2u1w) 2037 | -8/Materials | Core integrity fell below 50% 2049 | -8/Materials | Lost 5 parts (1n1u3w) 2136 | -8/Materials | Core integrity fell below 20% 2150 | -8/Materials | Destroyed by C-17 Slicer with Concussive RPG Last Messages --------------- 02126_ Acquired Prototype Energy Gun. 02126_ Identified Hvy. EM Shotgun. 02127_ Hrd. Medium Armor Plating severed. 02128_ G-47 Trooper destroyed. 02130_ R-06 Scavenger destroyed. 02131_ R-06 Scavenger collects Sml. Storage Unit. 02131_ Lgt. Nuclear Core severed. 02132_ Acquired Hrd. Medium Armor Plating. 02134_ Electrolysis Chamber disabled. 02134_ Hrd. Medium Armor Plating severed. 02135_ R-06 Scavenger collects Com. Wheel. 02135_ Hvy. EM Shotgun severed. 02137_ System corrupted: Matter fused (-9). 02137_ Aluminum Leg severed. 02138_ R-06 Scavenger collects Com. Wheel. 02140_ K-01 Serf collects debris. 02141_ Slammed into K-01 Serf. 02144_ ALERT: Hostiles spotted, dispatching reinforcements to Terminal M001. Map ----- +----------------------------------------------------+ | ?????????????????????????????????????????????????? | | ?????????????????????????????????????????????????? | | ?????????????????????????????????????????????????? | | ?????????????????????????????????????????????????? | | ?????????????????????????????????????????????????? | | ?????????????????????????????????????????????????? | | ?????????????????????????????????????????????????? | | ?????????????????????????????????????????????????? | | ?????????????????????????????????????????????????? | | ?????????##+##???????????????????????????????????? | | ?????????# ???????????????????????????????????? | | ?????????# #???????????????????????????????????? | | ?????????# #???????????????????????????????????? | | ?????????+ #???????????????????????????????????? | | ?????????# #???????????????????????????????????? | | ?????????# #??????###+#????????????????????????? | | ?????????# ####### ????????????????????????? | | ?????????# T ???????????????????????? | | ?????????# ????????????????????????? | | ?????????# #??????##???????????????????? | | ?????????# #??#### #?#?????????????????? | | ?????????# """ #?##!!!!# #?????????????????? | | ########## """ #?#! ! #?????????????????? | | ] ## """ #?# #?????????????????? | | # """ c ### ###???????????????? | | """ # a w c @ ????????? | | """ + c ????????? | | =* "" # k ????????? | | =* =%% # ###+#############+####### ?????????? | | =* [! # ##??????????????????????????????????? | | *= # #???????????????????????????????????? | | ######### #???????????????????????????????????? | | ######### #???????????????????????????????????? | | % % #???????????????????????????????????? | | % % #???????????????????????????????????? | | % #???????????????????????????????????? | | ##" ###### #???????????????????????????????????? | | ?#"T#????# #???????????????????????????????????? | | ?####????# #???????????????????????????????????? | | ?????????# #???????????????????????????????????? | | ?????????? #???????????????????????????????????? | | ?????????? #???????????????????????????????????? | | ?????????? #???????????????????????????????????? | | ?????????? #???????????????????????????????????? | | ??????????? ???????????????????????????????????? | | ??????????? #???????????????????????????????????? | | ??????????? #???????????????????????????????????? | | ??????????? #???????????????????????????????????? | | ?????????????????????????????????????????????????? | | ?????????????????????????????????????????????????? | +----------------------------------------------------+ Best States ------------- Heat Dissipation 50 Energy Generation 14 Energy Capacity 280 Matter Stores 300 Matter Capacity 300 Sight Range 16 Robot Scan Range 15 Terrain Scan Density 10 ECM Strength 2 Armor Coverage 225 Propulsion Shielding 33 Evasion (%) 55 Recoil Reduction 1 Particle Charging 15 Offensive Hacking 10 Item Schematics ----------------- Sensor Array | -10/Materials | Hacked Arm. Wheel | -8/Materials | Hacked Robot Schematics ------------------ None Fabricated ------------ Nothing Alien Tech Used ----------------- None Achievements -------------- None Challenges ------------ None Game ------ Seed VortexClaymoresNanovents Manual? 0 Play Time 00:24:46 Cumulative 73.4 hours Start 2024.03.05 @ 21:10:10 End 2024.03.05 @ 21:41:08 Sessions 1 Manual Loads 0 Difficulty Rogue Special Mode None Game No. 77 Rogue 77 Adventurer 0 Explorer 0 Win Type - Total 0 Types 0/0/0/0/0/0/0/0/0 Lore% 31 Gallery% 43 Achievement% 29 Wizard Run 0 Options --------- Layout 2 ASCII 1 Keyboard 1 Movement Numpad Keybinds 0 Fullscreen 2 Font 32/TamsynBold Map View 50x44 Zoom Use 0% Tactical HUD 1 Map Filters NONE Filters NONE Steam 1 RUN: 65ba5d0b-119a-45dc-852a-dd1af9f64c7a